Workbook

Sheet Титул
AF1: Утверждаю
AF2: Директор
AF4: Неврова Людмила Владимировна
A5: Заседанием педагогического совета №3
A6: Протокол №3 | D6: 2 от 25.02.2025 | AF6: 2025-02-25
A9: УЧЕБНЫЙ ПЛАН
A10: программы подготовки специалистов среднего звена
A11: Автономная некоммерческая организация профессиональная образовательная организация «Московский колледж деловой карьеры»
A12: наименование образовательного учреждения (организации)
A13: по специальности среднего профессионального образования
A14: 54.01.20 | G14: Графический дизайнер
A15: код | G15: наименование специальности
A16: по программе базовой подготовки | P16: среднее общее образование
P17: Уровень образования, необходимый для приема на обучение
A19: квалификация: | G19: Графический дизайнер
G20: 20 7
G21: 21 7
G22: 22 7
G23: 23 7
G24: 24 7
G25: 25 7
A27: форма обучения | G27: Очная | P27: Нормативный срок освоения ОПОП | AC27: 1г 10м | AI27: год начала подготовки по УП | AS27: 2025
A29: профиль получаемого профессионального образования | U29: Технологический профиль
U30: при реализации программы среднего общего образования
A32: Приказ об утверждении ФГОС | L32: от | N32: 2024-12-24 | S32: № | U32: 1025

Sheet График
B7: 1 Календарный учебный график
B8: Курс | C8: Сентябрь | G8: 29 сен - 5 окт | H8: Октябрь | K8: 27 окт - 2 ноя | L8: Ноябрь | P8: Декабрь | T8: 29 дек - 4 янв | U8: Январь | X8: 26 янв - 1 фев | Y8: Февраль | AB8: 23 фев - 1 мар | AC8: Март | AG8: 30 мар - 5 апр | AH8: Апрель | AK8: 27 апр - 3 май | AL8: Май | AP8: Июнь | AT8: 29 июн - 5 июл | AU8: Июль | AX8: 27 июл -2 авг | AY8: Август
C9: 1 - 7 | D9: 8 - 14 | E9: 15 - 21 | F9: 22 - 28 | H9: 6 - 12 | I9: 13 - 19 | J9: 20 - 26 | L9: 3 - 9 | M9: 10 - 16 | N9: 17 - 23 | O9: 24 - 30 | P9: 1 - 7 | Q9: 8 - 14 | R9: 15 - 21 | S9: 22 - 28 | U9: 5 - 11 | V9: 12 - 18 | W9: 19 - 25 | Y9: 2 - 8 | Z9: 9 - 15 | AA9: 16 - 22 | AC9: 2 - 8 | AD9: 9 - 15 | AE9: 16 - 22 | AF9: 23 - 29 | AH9: 6 - 12 | AI9: 13 - 19 | AJ9: 20 - 26 | AL9: 4 - 10 | AM9: 11 - 17 | AN9: 18 - 24 | AO9: 25 - 31 | AP9: 1 - 7 | AQ9: 8 - 14 | AR9: 15 - 21 | AS9: 22 - 28 | AU9: 6 - 12 | AV9: 13 - 19 | AW9: 20 - 26 | AY9: 3 - 9 | AZ9: 10 - 16 | BA9: 17 - 23 | BB9: 24 - 31
C10: 1 | D10: 2 | E10: 3 | F10: 4 | G10: 5 | H10: 6 | I10: 7 | J10: 8 | K10: 9 | L10: 10 | M10: 11 | N10: 12 | O10: 13 | P10: 14 | Q10: 15 | R10: 16 | S10: 17 | T10: 18 | U10: 19 | V10: 20 | W10: 21 | X10: 22 | Y10: 23 | Z10: 24 | AA10: 25 | AB10: 26 | AC10: 27 | AD10: 28 | AE10: 29 | AF10: 30 | AG10: 31 | AH10: 32 | AI10: 33 | AJ10: 34 | AK10: 35 | AL10: 36 | AM10: 37 | AN10: 38 | AO10: 39 | AP10: 40 | AQ10: 41 | AR10: 42 | AS10: 43 | AT10: 44 | AU10: 45 | AV10: 46 | AW10: 47 | AX10: 48 | AY10: 49 | AZ10: 50 | BA10: 51 | BB10: 52
B14: I | C14: 16 | S14: :: | T14: = | U14: = | V14: 19 | AO14: :: | AP14: 0 | AQ14: 0 | AR14: 0 | AS14: 8 | AT14: = | AU14: = | AV14: = | AW14: = | AX14: = | AY14: = | AZ14: = | BA14: = | BB14: =
AO15: :: | AP15: 0 | AQ15: 0 | AR15: 0 | AS15: 8
AO16: :: | AP16: 0 | AQ16: 0 | AR16: 0 | AS16: 8
AO17: :: | AP17: 0 | AQ17: 0 | AR17: 0 | AS17: 8
AO18: 0 | AP18: 0 | AQ18: 0 | AR18: 8 | AS18: ::
AO19: 0 | AP19: 0 | AQ19: 0 | AR19: 8 | AS19: ::
B21: II | C21: 14 | Q21: :: | R21: 0 | S21: 0 | T21: = | U21: = | V21: 11 | AG21: :: | AH21: :: | AI21: 8 | AJ21: 8 | AK21: 8 | AL21: 8 | AM21: 0 | AN21: 8 | AO21: 8 | AP21: 0 | AQ21: 8 | AR21: 8 | AS21: III | AT21: * | AU21: * | AV21: * | AW21: * | AX21: * | AY21: * | AZ21: * | BA21: * | BB21: *
Q22: :: | R22: 0 | S22: 0 | AG22: :: | AH22: :: | AI22: 8 | AJ22: 8 | AK22: 8 | AL22: 8 | AM22: 0 | AN22: 8 | AO22: 8 | AP22: 0 | AQ22: 8 | AR22: 8
Q23: :: | R23: 0 | S23: 0 | AG23: :: | AH23: 8 | AI23: 8 | AJ23: 8 | AK23: 8 | AL23: :: | AM23: 0 | AN23: 8 | AO23: 8 | AP23: 0 | AQ23: 8 | AR23: 8
Q24: :: | R24: 0 | S24: 0 | AG24: :: | AH24: 8 | AI24: 8 | AJ24: 8 | AK24: 8 | AL24: :: | AM24: 0 | AN24: 8 | AO24: 8 | AP24: 0 | AQ24: 8 | AR24: 8
Q25: :: | R25: 0 | S25: 0 | AG25: :: | AH25: 8 | AI25: 8 | AJ25: 8 | AK25: 8 | AL25: 0 | AM25: 8 | AN25: 8 | AO25: :: | AP25: 0 | AQ25: 8 | AR25: 8
Q26: :: | R26: 0 | S26: 0 | AG26: :: | AH26: 8 | AI26: 8 | AJ26: 8 | AK26: 8 | AL26: 0 | AM26: 8 | AN26: 8 | AO26: 0 | AP26: 8 | AQ26: 8 | AR26: ::
B28: IV | C28: * | D28: * | E28: * | F28: * | G28: * | H28: * | I28: * | J28: * | K28: * | L28: * | M28: * | N28: * | O28: * | P28: * | Q28: * | R28: * | S28: * | T28: * | U28: * | V28: * | W28: * | X28: * | Y28: * | Z28: * | AA28: * | AB28: * | AC28: * | AD28: * | AE28: * | AF28: * | AG28: * | AH28: * | AI28: * | AJ28: * | AK28: * | AL28: * | AM28: * | AN28: * | AO28: * | AP28: * | AQ28: * | AR28: * | AS28: * | AT28: * | AU28: * | AV28: * | AW28: * | AX28: * | AY28: * | AZ28: * | BA28: * | BB28: *
B31: V | C31: * | D31: * | E31: * | F31: * | G31: * | H31: * | I31: * | J31: * | K31: * | L31: * | M31: * | N31: * | O31: * | P31: * | Q31: * | R31: * | S31: * | T31: * | U31: * | V31: * | W31: * | X31: * | Y31: * | Z31: * | AA31: * | AB31: * | AC31: * | AD31: * | AE31: * | AF31: * | AG31: * | AH31: * | AI31: * | AJ31: * | AK31: * | AL31: * | AM31: * | AN31: * | AO31: * | AP31: * | AQ31: * | AR31: * | AS31: * | AT31: * | AU31: * | AV31: * | AW31: * | AX31: * | AY31: * | AZ31: * | BA31: * | BB31: *
B34: VI | C34: * | D34: * | E34: * | F34: * | G34: * | H34: * | I34: * | J34: * | K34: * | L34: * | M34: * | N34: * | O34: * | P34: * | Q34: * | R34: * | S34: * | T34: * | U34: * | V34: * | W34: * | X34: * | Y34: * | Z34: * | AA34: * | AB34: * | AC34: * | AD34: * | AE34: * | AF34: * | AG34: * | AH34: * | AI34: * | AJ34: * | AK34: * | AL34: * | AM34: * | AN34: * | AO34: * | AP34: * | AQ34: * | AR34: * | AS34: * | AT34: * | AU34: * | AV34: * | AW34: * | AX34: * | AY34: * | AZ34: * | BA34: * | BB34: *
B37: VII | C37: * | D37: * | E37: * | F37: * | G37: * | H37: * | I37: * | J37: * | K37: * | L37: * | M37: * | N37: * | O37: * | P37: * | Q37: * | R37: * | S37: * | T37: * | U37: * | V37: * | W37: * | X37: * | Y37: * | Z37: * | AA37: * | AB37: * | AC37: * | AD37: * | AE37: * | AF37: * | AG37: * | AH37: * | AI37: * | AJ37: * | AK37: * | AL37: * | AM37: * | AN37: * | AO37: * | AP37: * | AQ37: * | AR37: * | AS37: * | AT37: * | AU37: * | AV37: * | AW37: * | AX37: * | AY37: * | AZ37: * | BA37: * | BB37: *
B40: VIII | C40: * | D40: * | E40: * | F40: * | G40: * | H40: * | I40: * | J40: * | K40: * | L40: * | M40: * | N40: * | O40: * | P40: * | Q40: * | R40: * | S40: * | T40: * | U40: * | V40: * | W40: * | X40: * | Y40: * | Z40: * | AA40: * | AB40: * | AC40: * | AD40: * | AE40: * | AF40: * | AG40: * | AH40: * | AI40: * | AJ40: * | AK40: * | AL40: * | AM40: * | AN40: * | AO40: * | AP40: * | AQ40: * | AR40: * | AS40: * | AT40: * | AU40: * | AV40: * | AW40: * | AX40: * | AY40: * | AZ40: * | BA40: * | BB40: *
B43: IX | C43: * | D43: * | E43: * | F43: * | G43: * | H43: * | I43: * | J43: * | K43: * | L43: * | M43: * | N43: * | O43: * | P43: * | Q43: * | R43: * | S43: * | T43: * | U43: * | V43: * | W43: * | X43: * | Y43: * | Z43: * | AA43: * | AB43: * | AC43: * | AD43: * | AE43: * | AF43: * | AG43: * | AH43: * | AI43: * | AJ43: * | AK43: * | AL43: * | AM43: * | AN43: * | AO43: * | AP43: * | AQ43: * | AR43: * | AS43: * | AT43: * | AU43: * | AV43: * | AW43: * | AX43: * | AY43: * | AZ43: * | BA43: * | BB43: *
B46: X | C46: * | D46: * | E46: * | F46: * | G46: * | H46: * | I46: * | J46: * | K46: * | L46: * | M46: * | N46: * | O46: * | P46: * | Q46: * | R46: * | S46: * | T46: * | U46: * | V46: * | W46: * | X46: * | Y46: * | Z46: * | AA46: * | AB46: * | AC46: * | AD46: * | AE46: * | AF46: * | AG46: * | AH46: * | AI46: * | AJ46: * | AK46: * | AL46: * | AM46: * | AN46: * | AO46: * | AP46: * | AQ46: * | AR46: * | AS46: * | AT46: * | AU46: * | AV46: * | AW46: * | AX46: * | AY46: * | AZ46: * | BA46: * | BB46: *
B49: XI | C49: * | D49: * | E49: * | F49: * | G49: * | H49: * | I49: * | J49: * | K49: * | L49: * | M49: * | N49: * | O49: * | P49: * | Q49: * | R49: * | S49: * | T49: * | U49: * | V49: * | W49: * | X49: * | Y49: * | Z49: * | AA49: * | AB49: * | AC49: * | AD49: * | AE49: * | AF49: * | AG49: * | AH49: * | AI49: * | AJ49: * | AK49: * | AL49: * | AM49: * | AN49: * | AO49: * | AP49: * | AQ49: * | AR49: * | AS49: * | AT49: * | AU49: * | AV49: * | AW49: * | AX49: * | AY49: * | AZ49: * | BA49: * | BB49: *
B52: 0
B59: I
B66: II
B73: III
B80: IV
B87: V
B94: VI
B101: VII
B108: VIII
B115: IX
B122: X
B129: XI
B136: Обозначения: | I136: Обучение по дисциплинам и междисциплинарным курсам | Z136: 0 | AA136: Учебная практика | AS136: * | AT136: Неделя отсутствует | BF136: ПМ.01
H138: :: | I138: Промежуточная аттестация | Z138: 8 | AA138: Производственная практика (по профилю специальности) | AS138: III | AT138: ГИА | BF138: ПМ.02
H140: = | I140: Каникулы | BF140: ПМ.03
BF142: ПМ.04
B144: 2 Сводные данные по бюджету времени
B146: Курс | C146: Обучение по дисциплинам и междисциплинарным курсам | U146: Промежуточная аттестация | AD146: 1 | AR146: ГИА | AV146: Каникулы | AZ146: Всего
AD147: Учебная практика | AK147: Производственная практика (по профилю специальности) | AR147: Подго- товка | AT147: Прове- дение
C148: Всего | I148: 1 сем | O148: 2 сем | U148: Всего | X148: 1 сем | AA148: 2 сем | AD148: Всего | AG148: 1 сем | AI148: 2 сем | AK148: Всего | AN148: 1 сем | AP148: 2 сем | AR148: 1 сем | AT148: 2 сем | AV148: 1 сем | AX148: 2 сем
C149: нед. | I149: нед. | O149: нед. | U149: нед. | X149: нед. | AA149: нед. | AD149: нед. | AG149: нед. | AI149: нед. | AK149: нед. | AN149: нед. | AP149: нед. | AR149: нед. | AT149: нед. | AV149: нед. | AX149: нед. | AZ149: нед.
B150: I | C150: 35 | I150: 16 | O150: 19 | U150: 2 | X150: 1 | AA150: 1 | AD150: 3 | AI150: 3 | AK150: 1 | AP150: 1 | AV150: 2 | AX150: 9 | AZ150: =C150+U150+AD150+AK150+AR150+AT150+AV150+AX150 -> 52
B151: II | C151: 25 | I151: 14 | O151: 11 | U151: 3 | X151: 1 | AA151: 2 | AD151: 4 | AG151: 2 | AI151: 2 | AK151: 8 | AP151: 8 | AT151: 1 | AX151: 2 | AZ151: =C151+U151+AD151+AK151+AR151+AT151+AV151+AX151 -> 43
B152: IV
B153: V
B154: VI
B155: VII
B156: VIII
B157: IX
B158: X
B159: XI
B160: Всего | C160: =C150+C151 -> 60 | I160: =I150+I151 -> 30 | O160: =O150+O151 -> 30 | U160: =U150+U151 -> 5 | X160: =X150+X151 -> 2 | AA160: =AA150+AA151 -> 3 | AD160: 7 | AG160: 2 | AI160: 4 | AK160: 9 | AN160: 2 | AP160: 9 | AT160: 1 | AV160: 2 | AX160: =AX150+AX151 -> 11 | AZ160: =AZ150+AZ151 -> 95
B162: Курс | C162: Обучение по дисциплинам и междисциплинарным курсам, в том числе учебная практика | U162: Промежуточная аттестация | AD162: Практики | AR162: ГИА | AX162: Каникулы | BA162: Всего | BD162: Студентов | BH162: Групп
AD163: Производственная практика (по профилю специальности) | AK163: Производственная практика (преддипломная) | AR163: Подго- товка | AU163: Прове- дение
C164: Всего | I164: 1 сем | O164: 2 сем | U164: Всего | X164: 1 сем | AA164: 2 сем | AD164: Всего | AG164: 1 сем | AI164: 2 сем | AK164: Всего | AN164: 1 сем | AP164: 2 сем
C165: нед. | F165: час. обяз. уч. занятий | I165: нед. | L165: час. обяз. уч. занятий | O165: нед. | R165: час. обяз. уч. занятий | U165: нед. | X165: нед. | AA165: нед. | AD165: нед. | AG165: нед. | AI165: нед. | AK165: нед. | AN165: нед. | AP165: нед. | AR165: нед. | AU165: нед. | AX165: нед. | BA165: нед.
B166: I
B167: II
B168: III
B169: IV
B170: V
B171: VI
B172: VII
B173: VIII
B174: IX
B175: X
B176: XI
B177: Всего
B179: Курс | C179: Обучение по циклам и разделу "Физическая культура" | U179: Промежуточная аттестация | AD179: Практики | AR179: ГИА | AU179: Каникулы | AX179: Всего | BA179: Студентов | BE179: Групп
AD180: Учебная практика (Производственное обучение) | AK180: Производственная практика | AR180: Прове- дение
C181: Всего | I181: 1 сем | O181: 2 сем | U181: Всего | X181: 1 сем | AA181: 2 сем | AD181: Всего | AG181: 1 сем | AI181: 2 сем | AK181: Всего | AN181: 1 сем | AP181: 2 сем
C182: нед. | F182: час. обяз. уч. зан. | I182: нед. | L182: час. обяз. уч. зан. | O182: нед. | R182: час. обяз. уч. зан. | U182: нед. | X182: нед. | AA182: нед. | AD182: нед. | AG182: нед. | AI182: нед. | AK182: нед. | AN182: нед. | AP182: нед. | AR182: нед. | AU182: нед. | AX182: нед.
B183: I
B184: II
B185: III
B186: IV
B187: V
B188: Всего
B190: Курс | C190: Обучение по циклам и разделу "Физическая культура", в том числе учебная практика | U190: Промежуточная аттестация | AD190: Практики | AK190: ГИА | AN190: Каникулы | AQ190: Всего | AT190: Студентов | AX190: Групп
AD191: Производственная практика | AK191: Прове- дение
C192: Всего | I192: 1 сем | O192: 2 сем | U192: Всего | X192: 1 сем | AA192: 2 сем | AD192: Всего | AG192: 1 сем | AI192: 2 сем
C193: нед. | F193: час. обяз. уч. зан. | I193: нед. | L193: час. обяз. уч. зан. | O193: нед. | R193: час. обяз. уч. зан. | U193: нед. | X193: нед. | AA193: нед. | AD193: нед. | AG193: нед. | AI193: нед. | AK193: нед. | AN193: нед. | AQ193: нед.
B194: I
B195: II
B196: III
B197: IV
B198: V
B199: Всего

Sheet План
B1: Индекс | C1: Наименование циклов, разделов, дисциплин, профессиональных модулей, МДК, практик | D1: Формы промежуточной аттестации | J1: Учебная нагрузка обучающихся, ч. | U1: Учебная практика | V1: производственная практика | BK1: ЦК | BL1: Максимальная учебная нагрузка
W2: Курс 1 | AQ2: Курс 2
D3: Экзамены | E3: Зачеты | F3: Диффер. зачеты | G3: Курсовые проекты | H3: контрольные работы | I3: Другие | J3: Максимальная | K3: Самост.(с.р.+и.п.) | L3: Консультации | M3: в форме проф.подготовки | N3: Обязательная | S3: Промежут. аттестация | T3: Индивид. проект (входит в с.р.) | W3: Семестр 1 | AG3: Семестр 2 | AQ3: Семестр 3 | BA3: Семестр 4
N4: Всего | O4: в том числе | W4: 16 нед | AG4: 19 нед + 4 нед практ | AQ4: 14 нед+2 нед.практ | BA4: 11 нед+ 9 нед
O5: Лекции, уроки | P5: Пр. занятия | Q5: консультации | R5: Курс. проектир. | W5: Максим. | X5: Самост. | Y5: Консульт. | Z5: Обязательная | AA5: в том числе | AE5: Промежут. аттестация | AF5: Индивид. проект | AG5: Максим. | AH5: Самост. | AI5: Консульт. | AJ5: Обязательная | AK5: в том числе | AO5: Промежут. аттестация | AP5: Индивид. проект | AQ5: Максим. | AR5: Самост. | AS5: Консульт. | AT5: Обязательная | AU5: в том числе | AY5: Промежут. аттестация | AZ5: Индивид. проект | BA5: Максим. | BB5: Самост. | BC5: Консульт. | BD5: Обязательная | BE5: в том числе | BI5: Промежут. аттестация | BJ5: Индивид. проект | BL5: Обяз. часть | BM5: Вар. часть
AA6: Лекции, уроки | AB6: Пр.занятия | AC6: Лаб. занятия | AD6: Курс. проектир. | AK6: Лекции, уроки | AL6: Пр.занятия | AM6: Лаб. занятия | AN6: Курс. проектир. | AU6: Лекции, уроки | AV6: Пр.занятия | AW6: Лаб. занятия | AX6: Курс. проектир. | BE6: Лекции, уроки | BF6: Пр.занятия | BG6: Лаб. занятия | BH6: Курс. проектир.
B7: 1 | C7: 2 | D7: 3 | E7: 4 | F7: 5 | G7: 6 | H7: 7 | I7: 8 | J7: 9 | K7: 11 | M7: 13 | N7: 14 | O7: 16 | P7: 17 | Q7: 18 | R7: 22 | S7: 23 | T7: 24 | W7: 51 | X7: 52 | Y7: 53 | Z7: 54 | AA7: 55 | AB7: 56 | AC7: 57 | AD7: 61 | AE7: 62 | AF7: 63 | AG7: 64 | AH7: 65 | AI7: 66 | AJ7: 67 | AK7: 68 | AL7: 69 | AM7: 70 | AN7: 74 | AO7: 75 | AP7: 76 | AQ7: 77 | AR7: 78 | AS7: 79 | AT7: 80 | AU7: 81 | AV7: 82 | AW7: 83 | AX7: 87 | AY7: 88 | AZ7: 89 | BA7: 90 | BB7: 91 | BC7: 92 | BD7: 93 | BE7: 94 | BF7: 95 | BG7: 96 | BH7: 100 | BI7: 101 | BJ7: 102 | BK7: 311 | BL7: 312 | BM7: 313
C9: Итого час/нед (с учетом консультаций в период обучения по циклам) | W9: 36 | Z9: =Z11/16 -> 35.375 | AG9: 36 | AJ9: =AJ11/19 -> 33.89473684 | AQ9: 36 | AT9: =AT11/16 -> 29.125 | BA9: 36 | BD9: 34
B11: ПП | C11: ПРОФЕССИОНАЛЬНАЯ ПОДГОТОВКА | D11: 10 | F11: 22 | G11: 1 | J11: =J13+J28+J81 -> 2880 | K11: =K13+K28+K81 -> 92 | N11: =N13+N28+N81 -> 2464 | O11: =O13+O28 -> 802 | P11: =P13+P28 -> 1254 | Q11: =Q13+Q28 -> 18 | R11: =R13+R28 -> 0 | S11: =S13+S28 -> 180 | W11: =W13+W28 -> 606 | X11: =X13+X28 -> 26 | Z11: =Z13+Z28+X11 -> 566 | AA11: =AA13+AA28 -> 228 | AB11: =AB13+AB28 -> 312 | AE11: =AE13+AE28 -> 36 | AG11: =AG13+AG28 -> 864 | AH11: =AH13+AH28 -> 34 | AJ11: =AJ13+AJ28 -> 644 | AK11: =AK13+AK28 -> 228 | AL11: =AL13+AL28 -> 422 | AN11: =AN13+AN28 -> 0 | AO11: =AO13+AO28 -> 36 | AP11: =AP13+AP28 -> 0 | AQ11: =AQ13+AQ28 -> 534 | AR11: =AR13+AR28 -> 28 | AT11: =AT13+AT28 -> 466 | AU11: =AU13+AU28 -> 222 | AV11: =AV13+AV28 -> 310 | AY11: =AY13+AY28 -> 36 | BA11: =BA13+BA28 -> 828 | BB11: =BB13+BB28 -> 18 | BD11: =BD13+BD28 -> 542 | BE11: =BE13+BE28 -> 162 | BF11: =BF13+BF28 -> 270 | BH11: =BH13+BH28 -> 0 | BI11: =BI13+BI28 -> 72 | BL11: =BL13+BL28 -> 1872 | BM11: =BM13+BM28 -> 888
B13: ОП | C13: Общепрофессиональный цикл | D13: 3 | F13: 10 | J13: =J14+J15+J16+J17+J18+J19+J20+J21+J22+J23+J24+J25 -> 856 | K13: 20 | L13: 0 | M13: 318 | N13: 824 | O13: 249 | P13: 564 | S13: =S14+S15+S16+S17+S18+S19+S20+S21+S22+S23+S24+S25 -> 12 | W13: =W14+W15+W16+W17+W18+W19+W20+W21+W22+W23+W24+W25 -> 344 | X13: =X14+X15+X16+X17+X18+X19+X20+X21+X22+X23+X24+X25 -> 4 | Z13: =Z14+Z15+Z16+Z17+Z18+Z19+Z20+Z21+Z22+Z23+Z24+Z25 -> 340 | AA13: =AA14+AA15+AA16+AA17+AA18+AA19+AA20+AA21+AA22+AA23+AA24+AA25 -> 142 | AB13: =AB14+AB15+AB16+AB17+AB18+AB19+AB20+AB21+AB22+AB23+AB24+AB25 -> 198 | AE13: =AE14+AE15+AE16+AE17+AE18+AE19+AE20+AE21+AE22+AE23+AE24+AE25 -> 0 | AG13: =AG14+AG15+AG16+AG17+AG18+AG19+AG20+AG21+AG22+AG23+AG24+AG25 -> 342 | AH13: =AH14+AH15+AH16+AH17+AH18+AH19+AH20+AH21+AH22+AH23+AH24+AH25 -> 16 | AJ13: =AJ14+AJ15+AJ16+AJ17+AJ18+AJ19+AJ20+AJ21+AJ22+AJ23+AJ24+AJ25 -> 314 | AK13: =AK14+AK15+AK16+AK17+AK18+AK19+AK20+AK21+AK22+AK23+AK24+AK25 -> 84 | AL13: =AL14+AL15+AL16+AL17+AL18+AL19+AL20+AL21+AL22+AL23+AL24+AL25 -> 230 | AO13: =AO14+AO15+AO16+AO17+AO18+AO19+AO20+AO21+AO22+AO23+AO24+AO25 -> 12 | AQ13: =AQ14+AQ15+AQ16+AQ17+AQ18+AQ19+AQ20+AQ21+AQ22+AQ23+AQ24+AQ25 -> 148 | AR13: =AR14+AR15+AR16+AR17+AR18+AR19+AR20+AR21+AR22+AR23+AR24+AR25 -> 0 | AT13: =AT14+AT15+AT16+AT17+AT18+AT19+AT20+AT21+AT22+AT23+AT24+AT25 -> 148 | AU13: =AU14+AU15+AU16+AU17+AU18+AU19+AU20+AU21+AU22+AU23+AU24+AU25 -> 36 | AV13: =AV14+AV15+AV16+AV17+AV18+AV19+AV20+AV21+AV22+AV23+AV24+AV25 -> 116 | AY13: =AY14+AY15+AY16+AY17+AY18+AY19+AY20+AY21+AY22+AY23+AY24+AY25 -> 0 | BA13: =BA14+BA15+BA16+BA17+BA18+BA19+BA20+BA21+BA22+BA23+BA24+BA25 -> 22 | BB13: =BB14+BB15+BB16+BB17+BB18+BB19+BB20+BB21+BB22+BB23+BB24+BB25 -> 0 | BD13: =BD14+BD15+BD16+BD17+BD18+BD19+BD20+BD21+BD22+BD23+BD24+BD25 -> 22 | BE13: =BE14+BE15+BE16+BE17+BE18+BE19+BE20+BE21+BE22+BE23+BE24+BE25 -> 2 | BF13: =BF14+BF15+BF16+BF17+BF18+BF19+BF20+BF21+BF22+BF23+BF24+BF25 -> 20 | BI13: =BI14+BI15+BI16+BI17+BI18+BI19+BI20+BI21+BI22+BI23+BI24+BI25 -> 0 | BL13: =BL14+BL15+BL16+BL17+BL18+BL19+BL20+BL21+BL22+BL23+BL24+BL25 -> 566 | BM13: =BM14+BM15+BM16+BM17+BM18+BM19+BM20+BM21+BM22+BM23+BM24+BM25 -> 402
B14: ОП.01 | C14: Основы материаловедения | F14: 1 | J14: 40 | K14: 2 | M14: 10 | N14: 38 | O14: 11 | P14: 16 | W14: 40 | X14: 2 | Z14: 38 | AA14: 22 | AB14: 16 | BL14: 72 | BM14: 10
B15: ОП.02 | C15: Безопасность жизнедеятельности | F15: 3 | J15: 56 | M15: 28 | N15: 56 | O15: 24 | P15: 32 | AQ15: 56 | AT15: 56 | AU15: 28 | AV15: 32 | BL15: 62 | BM15: 10
B16: ОП.03 | C16: История дизайна | F16: 1 | J16: 36 | M16: 8 | N16: 36 | O16: 26 | P16: 10 | W16: 36 | Z16: 36 | AA16: 26 | AB16: 10 | BL16: 84 | BM16: 10
B17: ОП.04 | C17: Основы дизайна и композиции | F17: 1 | J17: 40 | K17: 2 | M17: 16 | N17: 38 | O17: 20 | P17: 18 | W17: 40 | X17: 2 | Z17: 38 | AA17: 20 | AB17: 18 | BL17: 108 | BM17: 80
B18: ОП.05 | C18: Основы финансовой грамотности и экономика | F18: 2 | J18: 57 | M18: 22 | N18: 57 | O18: 25 | P18: 32 | AG18: 57 | AJ18: 57 | AK18: 25 | AL18: 32 | BL18: 60 | BM18: 20
B19: ОП.06 | C19: Иностранный язык в профессиональной деятельности | F19: 3 | H19: 1.2 | J19: 98 | M19: 38 | N19: 98 | P19: 98 | W19: 32 | Z19: 32 | AB19: 32 | AG19: 38 | AJ19: 38 | AL19: 38 | AQ19: 28 | AT19: 28 | AV19: 28 | BL19: 36 | BM19: 32
B20: ОП.07 | C20: Физическая культура/Адаптивная физическая культура | F20: 1,2, 3,4 | J20: 120 | N20: 120 | O20: 8 | P20: 112 | W20: 32 | Z20: 32 | AA20: 2 | AB20: 30 | AG20: 38 | AJ20: 38 | AK20: 2 | AL20: 36 | AQ20: 28 | AT20: 28 | AU20: 2 | AV20: 26 | BA20: 22 | BD20: 22 | BE20: 2 | BF20: 20 | BL20: 108 | BM20: 10
B21: ОПв.08 | C21: Рисунок с основами перспекивы | D21: 2 | H21: 1 | J21: 109 | K21: 4 | M21: 56 | N21: 99 | O21: 38 | P21: 61 | S21: 6 | W21: 64 | Z21: 64 | AA21: 24 | AB21: 40 | AG21: 45 | AH21: 4 | AJ21: 35 | AK21: 14 | AL21: 21 | AO21: 6 | BL21: 36 | BM21: 12
B22: ОПв.09 | C22: Жифопись с основами цветоведения | H22: 1 | J22: 109 | K22: 4 | M22: 56 | N22: 99 | O22: 34 | P22: 65 | S22: 6 | W22: 64 | Z22: 64 | AA22: 20 | AB22: 44 | AG22: 45 | AH22: 4 | AJ22: 35 | AK22: 14 | AL22: 21 | AO22: 6 | BM22: 58
B23: ОПв.10 | C23: Шрифты и типографика | F23: 2 | J23: 43 | K23: 5 | N23: 38 | O23: 12 | P23: 26 | AG23: 43 | AH23: 5 | AJ23: 38 | AK23: 12 | AL23: 26 | BM23: 68
B24: ОПв.11 | C24: Инженерная и компьютерная графика | F24: 2 | H24: 1 | J24: 72 | K24: 3 | M24: 24 | N24: 69 | O24: 39 | P24: 30 | W24: 36 | Z24: 36 | AA24: 28 | AB24: 8 | AG24: 36 | AH24: 3 | AJ24: 33 | AK24: 11 | AL24: 22 | BM24: 44
B25: ОПв.12 | C25: Информационные технологии | F25: 4 | J25: 76 | M25: 60 | N25: 76 | O25: 12 | P25: 64 | AG25: 40 | AJ25: 40 | AK25: 6 | AL25: 34 | AQ25: 36 | AT25: 36 | AU25: 6 | AV25: 30 | BM25: 48
B26: *
B28: ПЦ | C28: Профессиональный цикл | D28: 7 | F28: 4 | G28: 1 | J28: =J30+J42+J56+J67 -> 1988 | K28: 72 | L28: 0 | M28: 692 | N28: 1604 | O28: 553 | P28: 690 | Q28: 18 | R28: 0 | S28: 168 | T28: 0 | U28: 180 | V28: 324 | W28: 262 | X28: 22 | Y28: 4 | Z28: 200 | AA28: 86 | AB28: 114 | AC28: 0 | AD28: 0 | AE28: 36 | AF28: 0 | AG28: 522 | AH28: 18 | AI28: 2 | AJ28: 330 | AK28: 144 | AL28: 192 | AM28: 0 | AN28: 0 | AO28: 24 | AP28: =AP30+AP42+AP56+AP67 -> 0 | AQ28: 386 | AR28: 28 | AS28: 2 | AT28: 318 | AU28: 186 | AV28: 194 | AW28: 0 | AX28: 0 | AY28: 36 | AZ28: 0 | BA28: 806 | BB28: 18 | BC28: 6 | BD28: 520 | BE28: 160 | BF28: 250 | BG28: 0 | BH28: 0 | BI28: 72 | BJ28: 0 | BL28: =BL30+BL42+BL56+BL67 -> 1306 | BM28: =BM30+BM42+BM56+BM67 -> 486
B30: ПМ.01 | C30: Разработка технического задания на продукт графического дизайна | D30: 2 | F30: 2 | G30: 1 | J30: =J32+J33+J35+J36+J39 -> 459 | K30: =K32+K33+K35+K39 -> 22 | L30: =L32+L33+L35+L39 -> 0 | M30: =M32+M33+M35+M36+M39 -> 256 | N30: =N32+N33+N35+N36+N39 -> 383 | O30: 130 | P30: =P32+P33 -> 126 | Q30: =Q32+Q33+Q39 -> 8 | R30: =R32+R33+R35+R39 -> 0 | S30: =S32+S33+S39 -> 54 | U30: 108 | V30: =V35+V36 -> 36 | W30: =W32+W33 -> 190 | X30: 14 | Y30: 4 | Z30: 136 | AA30: 62 | AB30: 74 | AE30: =AE32+AE33 -> 36 | AG30: =AG32+AG33+AG35+AG36 -> 263 | AH30: =AH32+AH33 -> 8 | AJ30: =AJ32+AJ33+AJ39 -> 89 | AK30: =AK32+AK33 -> 43 | AL30: =AL32+AL33 -> 52 | AN30: =AN32+AN33 -> 0 | AO30: =AO32+AO33+AO39 -> 18 | BL30: =BL32+BL33+BL35+BL39 -> 230 | BM30: =BM32+BM33+BM35+BM39 -> 104
B32: МДК 01.01 | C32: Дизайн - проектирование | D32: 1.2 | J32: 144 | K32: 10 | M32: 54 | N32: 110 | O32: 50 | P32: 56 | Q32: 4 | S32: 24 | W32: 94 | X32: 6 | Y32: 2 | Z32: 68 | AA32: 32 | AB32: 36 | AE32: 18 | AG32: 50 | AH32: 4 | AI32: 2 | AJ32: 32 | AK32: 18 | AL32: 20 | AO32: 6 | BL32: 102 | BM32: 48
B33: МДК 01.02 | C33: Проектная графика | D33: 1.2 | J33: 165 | K33: 12 | M33: 58 | N33: 129 | O33: 55 | P33: 70 | Q33: 4 | S33: 24 | W33: 96 | X33: 8 | Y33: 2 | Z33: 68 | AA33: 30 | AB33: 38 | AE33: 18 | AG33: 69 | AH33: 4 | AI33: 2 | AJ33: 57 | AK33: 25 | AL33: 32 | AO33: 6 | BL33: 86 | BM33: 56
B35: УП.01 | C35: Учебная практика | F35: 2 | I35: час | J35: 108 | M35: 108 | N35: 108 | O35: нед | P35: 3 | U35: 108 | W35: час | AA35: нед | AG35: 108 | AJ35: 108 | AK35: нед | AL35: 3 | AQ35: час | AU35: нед | BA35: час | BE35: нед | BL35: 36
B36: ПП.01 | C36: Производственная практика | I36: час | J36: 36 | M36: 36 | N36: 36 | O36: нед | P36: 1 | V36: 36 | W36: час | AA36: нед | AG36: 36 | AJ36: 36 | AK36: нед | AL36: 1 | AQ36: час | AU36: нед | BA36: час | BE36: нед | BL36: 36
B39: ПM.01.ЭК | C39: Экзамен (квалификационный) | D39: 2 | J39: 6 | S39: 6 | AG39: 6 | AO39: 6 | BL39: 6
C40: Всего часов по МДК | J40: =J32+J33 -> 309 | N40: 254
B42: ПМ.02 | C42: Создание графических дизайн-макетов | D42: 3 | H42: 1 | J42: =J44+J45+J49+J53+J51+J46+J47 -> 799 | K42: =K44+K45+K49+K46 -> 32 | M42: =M44+M45+M49+M46+M47 -> 198 | N42: =N44+N45+N49+N46+N47 -> 549 | O42: =O44+O45+O46+O47 -> 215 | P42: =P44+P45+P49+P46+P47 -> 318 | Q42: =Q44+Q45+Q46+Q47 -> 8 | S42: =S44+S45+S46+S47+S53 -> 74 | U42: =U49+U51 -> 0 | V42: =V49+V51 -> 144 | W42: =W44+W45+W46+W47 -> 72 | X42: 8 | Y42: 0 | Z42: 64 | AA42: 24 | AB42: 40 | AC42: 0 | AD42: 0 | AE42: 0 | AF42: 0 | AG42: =AG44+AG45+AG46+AG47+AG49 -> 259 | AH42: =AH44+AH45+AH46+AH47 -> 10 | AI42: 2 | AJ42: 241 | AK42: 101 | AL42: 140 | AM42: 0 | AN42: 0 | AO42: 6 | AP42: 0 | AQ42: =AQ44+AQ45+AQ46+AQ47+AQ49 -> 180 | AR42: =AR44+AH45+AR46+AR47 -> 18 | AS42: =AS44+AI45+AS46+AS47 -> 2 | AT42: =AT44+AT45+AT46+AT47+AT51 -> 124 | AU42: =AU44+AK45+AU46+AU47 -> 88 | AV42: =AV44+AL45+AV46+AV47 -> 98 | AY42: =AY44+AO45+AY46+AY47+AY53+AY45 -> 36 | BA42: =BA47+BA51 -> 280 | BB42: =BB44+AR45+BB46+BB47 -> 10 | BC42: =BC44+AS45+BC46+BC47 -> 4 | BD42: =BD44+AT45+BD46+BD47 -> 152 | BE42: =BE44+AU45+BE46+BE47 -> 50 | BF42: =BF44+AV45+BF46+BF47 -> 100 | BI42: =BI44+BI45+BI46+BI47+BI53 -> 32 | BL42: =BL44+BL45+BL49++BL53+BL51+BL46+BL47 -> 494 | BM42: =BM44+BM45+BM46+BM47 -> 166
B44: МДК 02.01 | C44: Фирменный стиль и корпоративный дизайн | D44: 2 | F44: 1 | J44: 160 | K44: 12 | M44: 60 | N44: 142 | O44: 54 | P44: 86 | Q44: 2 | S44: 6 | W44: 72 | X44: 8 | Z44: 64 | AA44: 24 | AB44: 40 | AG44: 88 | AH44: 4 | AI44: 2 | AJ44: 76 | AK44: 30 | AL44: 46 | AO44: 6 | BL44: 96 | BM44: 28
B45: МДК.02.02 | C45: Информационный дизайн и медиа | D45: 3 | F45: 2 | J45: 184 | K45: 12 | M45: 36 | N45: 156 | O45: 58 | P45: 94 | Q45: 2 | S45: 18 | AG45: 114 | AH45: 6 | AJ45: 108 | AK45: 48 | AL45: 60 | AQ45: 70 | AR45: 6 | AS45: 2 | AT45: 46 | AU45: 10 | AV45: 34 | AY45: 18 | BL45: 82 | BM45: 46
B46: МДК.02.03 | C46: Многостраничный дизайн | D46: 3 | F46: 2 | J46: 143 | K46: 8 | M46: 48 | N46: 123 | O46: 53 | P46: 62 | Q46: 2 | S46: 18 | AG46: 57 | AJ46: 57 | AK46: 23 | AL46: 34 | AQ46: 86 | AR46: 8 | AS46: 2 | AT46: 58 | AU46: 30 | AV46: 28 | AY46: 18 | BL46: 82 | BM46: 46
B47: МДК.02.04 | C47: Дизайн упаковки | D47: 4 | H47: 3 | J47: 160 | K47: 8 | M47: 54 | N47: 128 | O47: 50 | P47: 76 | Q47: 2 | S47: 24 | AQ47: 24 | AR47: 4 | AT47: 20 | AU47: 10 | AV47: 10 | BA47: 136 | BB47: 4 | BC47: 2 | BD47: 106 | BE47: 40 | BF47: 66 | BI47: 24 | BL47: 82 | BM47: 46
B51: ПП.02 | C51: Производственная практика | F51: 4 | I51: час | J51: 144 | M51: 144 | N51: 144 | O51: нед | P51: 4 | V51: 144 | W51: час | AA51: нед | AK51: нед | AU51: нед | BA51: 144 | BD51: 144 | BE51: нед | BF51: 4 | BL51: 144
B53: ПM.02.ЭК | C53: Экзамен (квалификационный) | D53: 4 | J53: 8 | S53: 8 | BA53: 8 | BI53: 8 | BL53: 8
C54: Всего часов по МДК | J54: =J44+J45+J46+J47 -> 647 | N54: 216
B56: ПМ.03 | C56: Подготовка дизайн-макета к печати (публикации) | D56: 2 | F56: 1 | H56: 1 | J56: =J58+J59+J61+J63+J65 -> 338 | K56: =K58+K59 -> 6 | N56: =N58+N59+N61+N63+N65 -> 300 | O56: =O58+O59 -> 84 | P56: =P58+P59 -> 106 | Q56: =Q58+Q59 -> 2 | R56: =R58+R59 -> 0 | S56: =S58+S59+S65 -> 32 | U56: =U61+U63 -> 36 | V56: =V61+V63 -> 72 | AQ56: =AQ58+AQ59 -> 88 | AR56: =AR58+AR59 -> 4 | AT56: =AT58+AT59 -> 84 | AU56: =AU58+AU59 -> 38 | AV56: =AV58+AV59 -> 46 | BA56: =BA58+BA59+BA61+BA63+BA65 -> 250 | BB56: =BB58+BB59 -> 2 | BC56: =BC58+BC59 -> 2 | BD56: =BD58+BD59+BD61+BD63+BD65 -> 214 | BE56: =BE58+BE59 -> 46 | BF56: =BF58+BF59 -> 60 | BH56: =BH58+BH59 -> 0 | BI56: =BI58+BI65 -> 32 | BL56: =BL58+BL59+BL61+BL63+BL65 -> 292 | BM56: =BM58+BM59 -> 108
B58: МДК 03.01 | C58: Финальная сборка дизайн - макетов и подготовка их к печати типографии, к публикации | D58: 4 | H58: 3 | J58: 174 | K58: 4 | M58: 66 | N58: 146 | O58: 72 | P58: 72 | Q58: 2 | S58: 24 | AQ58: 88 | AR58: 4 | AT58: 84 | AU58: 38 | AV58: 46 | BA58: 86 | BC58: 2 | BD58: 60 | BE58: 34 | BF58: 26 | BI58: 24 | BL58: 80 | BM58: 30
B59: МДК 03.02 | C59: 3-D моделирование | F59: 4 | J59: 48 | K59: 2 | M59: 30 | N59: 46 | O59: 12 | P59: 34 | S59: 0 | BA59: 48 | BB59: 2 | BD59: 46 | BE59: 12 | BF59: 34 | BL59: 96 | BM59: 78
B61: УП.03 | C61: Учебная практика | F61: 4 | I61: час | J61: 36 | M61: 36 | N61: 36 | O61: нед | P61: 1 | U61: 36 | W61: час | AA61: нед | AG61: час | AK61: нед | AQ61: час | AU61: нед | BA61: 36 | BD61: 36 | BE61: нед | BF61: 1 | BL61: 36
B63: ПП.03 | C63: Производственная практика | F63: 4 | I63: час | J63: 72 | M63: 72 | N63: 72 | O63: нед | P63: 2 | V63: 72 | W63: час | AA63: нед | AG63: час | AK63: нед | AQ63: час | AU63: нед | BA63: 72 | BD63: 72 | BE63: нед | BF63: 2 | BL63: 72
B65: ПM.03.ЭК | C65: Экзамен (квалификационный) | D65: 4 | J65: 8 | S65: 8 | BA65: 8 | BI65: 8 | BL65: 8
C66: Всего часов по МДК | J66: =J58+J59 -> 222 | N66: 242
B67: ПМ.04 | C67: Организация личного профессионального развития и обучения на рабочем месте | D67: 2 | F67: 1 | J67: =J69+J70+J72+J74+J76 -> 392 | K67: =K69+K70 -> 12 | M67: =M69+M70+M72+M74+M76 -> 238 | N67: =N69+N70+N72+N74+N76 -> 372 | O67: =O69+O70 -> 124 | P67: =P69+P70 -> 140 | R67: =R69+R70 -> 0 | S67: =S69+S70+S72+S74+S76 -> 8 | U67: =U72+U74 -> 36 | V67: =V72+V74 -> 72 | AQ67: =AQ69+AQ70 -> 118 | AR67: =AR69+AR70 -> 6 | AT67: =AT69+AT70 -> 110 | AU67: =AU69+AU70 -> 60 | AV67: =AV69+AV70 -> 50 | BA67: =BA69+BA70+BA72+BA74+BA76 -> 276 | BB67: =BB69+BB70 -> 6 | BD67: =BD69+BD70+BD76 -> 154 | BE67: =BE69+BE70 -> 64 | BF67: =BF69+BF70 -> 90 | BH67: =BH69+BH70 -> 0 | BI67: =BI69+BI70+BI76 -> 8 | BL67: =BL69+BL70+BL72+BL74+BL76 -> 290 | BM67: =BM69+BM70+BM72+BM74+BM76 -> 108
B69: МДК 04.01 | C69: Основы менеджмента и планирование профессиональной деятельности | F69: 4.3 | H69: 3 | J69: 141 | K69: 8 | M69: 60 | N69: 133 | O69: 67 | P69: 66 | AQ69: 60 | AR69: 4 | AT69: 56 | AU69: 30 | AV69: 26 | BA69: 81 | BB69: 4 | BD69: 77 | BE69: 37 | BF69: 40 | BL69: 80 | BM69: 30
B70: МДК 04.02 | C70: Психология и этика профессиональной деятельности | F70: 4 | H70: 3 | J70: 135 | K70: 4 | M70: 70 | N70: 131 | O70: 57 | P70: 74 | AQ70: 58 | AR70: 2 | AT70: 54 | AU70: 30 | AV70: 24 | BA70: 79 | BB70: 2 | BD70: 77 | BE70: 27 | BF70: 50 | BL70: 96 | BM70: 78
B72: УП.04 | C72: Учебная практика | F72: 4 | I72: час | J72: 36 | M72: 36 | N72: 36 | O72: нед | P72: 1 | U72: 36 | W72: час | AA72: нед | AG72: час | AK72: нед | AQ72: час | AU72: нед | BA72: 36 | BD72: 36 | BE72: нед | BF72: 1 | BL72: 36
B74: ПП.04 | C74: Производственная практика | F74: 4 | I74: час | J74: 72 | M74: 72 | N74: 72 | O74: нед | P74: 2 | V74: 72 | W74: час | AA74: нед | AG74: час | AK74: нед | AQ74: час | AU74: нед | BA74: 72 | BD74: 72 | BE74: нед | BF74: 2 | BL74: 72
B76: ПM.04.ЭК | C76: Экзамен (квалификационный) | D76: 4 | J76: 8 | S76: 8 | BA76: 8 | BI76: 8 | BL76: 6
C77: Всего часов по МДК | J77: =J69+J70 -> 276 | N77: 242
C81: Государственная итоговая аттестация | I81: час | J81: 36 | N81: 36 | O81: нед | P81: 1 | W81: час | AA81: нед | AG81: час | AK81: нед | AQ81: час | AU81: нед | BA81: час | BD81: 36 | BE81: нед | BF81: 1
C82: Проведение демонстрационного экзамена | I82: час | J82: 36 | N82: 36 | O82: нед | P82: 1 | W82: час | AA82: нед | AG82: час | AK82: нед | AQ82: час | AU82: нед | BA82: час | BD82: 36 | BE82: нед | BF82: 1 | BL82: 36
C84: в т.ч. в период обучения по циклам
C86: ОБЪЕМ ОБРАЗОВАТЕЛЬНОЙ ПРОГРАММЫ В АКАДЕМИЧЕСКИХ ЧАСАХ | D86: 17 | F86: 33 | G86: 1 | J86: =J13+J28+J81 -> 2880 | N86: =N13+N28+N81 -> 2464 | P86: =P13+P28 -> 1254 | Q86: =Q13+Q28 -> 18 | R86: =R13+R28 -> 0 | S86: =S13+S28 -> 180 | X86: =X13+X28 -> 26 | Z86: =Z13+Z28 -> 540 | AA86: 248 | AB86: =AB13+AB28 -> 312 | AE86: =AE13+AE28 -> 36 | AG86: =AG13+AG28 -> 864 | AH86: =AH13+AH28 -> 34 | AJ86: =AJ13+AJ28 -> 644 | AK86: 342 | AL86: =AL13+AL28 -> 422 | AN86: =AN13+AN28 -> 0 | AO86: =AO13+AO28 -> 36 | AQ86: 612 | AR86: =AR13+AR28 -> 28 | AT86: =AT13+AT28 -> 466 | AU86: 230 | AV86: =AV13+AV28 -> 310 | AY86: =AY13+AY28 -> 36 | BA86: 864 | BB86: =BB13+BB28 -> 18 | BD86: =BD13+BD28 -> 542 | BE86: =BE13+BE28 -> 162 | BF86: =BF13+BF28 -> 270 | BH86: =BH13+BH28 -> 0 | BI86: =BI13+BI28 -> 72 | BL86: =BL81+#REF!+BL56+BL42+BL30+BL13 ->  | BM86: =BM81+#REF!+BM56+BM42+BM30+BM13 -> 
C88: Экзамены (без учета физ. культуры) | W88: 1 | AG88: 4 | AQ88: 1 | BA88: 4
C89: Зачеты (без учета физ. культуры)
C90: Диффер. зачеты (без учета физ. культуры) | W90: 4 | AG90: 6 | AQ90: 5 | BA90: 5
C91: Курсовые проекты (без учета физ. культуры) | AG91: 1
C92: Курсовые работы (без учета физ. культуры)

Sheet Компетенции(2)
A2: 0 | B2: 1 | C2: НО | E2: Начальное общее образование
B3: 2
B4: 3
B5: 4
B6: 5
B7: 6
B8: 7
B9: 8
A11: 1 | B11: 1 | C11: ОО | E11: Основное общее образование
B12: 2
B13: 3
B14: 4
B15: 5
B16: 6
B17: 7
B18: 8
A20: 2 | B20: 1 | C20: БД | E20: Базовые дисциплины
B21: 2
B22: 3
B23: 4
B24: 5
B25: 6
B26: 7
B27: 8
A28: 0 | B28: 1 | C28: БД.01 | D28: 3 | E28: Русский язык
B29: 2
B30: 3
B31: 4
B32: 5
B33: 6
B34: 7
B35: 8
A36: 1 | B36: 1 | C36: БД.02 | D36: 3 | E36: Литература
B37: 2
B38: 3
B39: 4
B40: 5
B41: 6
B42: 7
B43: 8
A44: 2 | B44: 1 | C44: БД.03 | D44: 3 | E44: Иностранный язык
B45: 2
B46: 3
B47: 4
B48: 5
B49: 6
B50: 7
B51: 8
A52: 3 | B52: 1 | C52: БД.04 | D52: 3 | E52: История
B53: 2
B54: 3
B55: 4
B56: 5
B57: 6
B58: 7
B59: 8
A60: 4 | B60: 1 | C60: БД.05 | D60: 3 | E60: Физическая культура
B61: 2
B62: 3
B63: 4
B64: 5
B65: 6
B66: 7
B67: 8
A68: 5 | B68: 1 | C68: БД.06 | D68: 3 | E68: География
B69: 2
B70: 3
B71: 4
B72: 5
B73: 6
B74: 7
B75: 8
A76: 6 | B76: 1 | C76: БД.07 | D76: 3 | E76: Обществознание
B77: 2
B78: 3
B79: 4
B80: 5
B81: 6
B82: 7
B83: 8
A84: 7 | B84: 1 | C84: БД.08 | D84: 3 | E84: Основы безопасности жизнедеятельности
B85: 2
B86: 3
B87: 4
B88: 5
B89: 6
B90: 7
B91: 8
A92: 8 | B92: 1 | C92: БД.09 | D92: 3 | E92: Химия
B93: 2
B94: 3
B95: 4
B96: 5
B97: 6
B98: 7
B99: 8
A100: 9 | B100: 1 | C100: БД.10 | D100: 3 | E100: Биология
B101: 2
B102: 3
B103: 4
B104: 5
B105: 6
B106: 7
B107: 8
A109: 3 | B109: 1 | C109: ПД | E109: Профильные дисциплины
B110: 2
B111: 3
B112: 4
B113: 5
B114: 6
B115: 7
B116: 8
A117: 10 | B117: 1 | C117: ПД.01 | D117: 4 | E117: Математика
B118: 2
B119: 3
B120: 4
B121: 5
B122: 6
B123: 7
B124: 8
A125: 11 | B125: 1 | C125: ПД.02 | D125: 4 | E125: Информатика
B126: 2
B127: 3
B128: 4
B129: 5
B130: 6
B131: 7
B132: 8
A133: 12 | B133: 1 | C133: ПД.03 | D133: 4 | E133: Физика
B134: 2
B135: 3
B136: 4
B137: 5
B138: 6
B139: 7
B140: 8
A142: 4 | B142: 1 | C142: ПОО | E142: Предлагаемые ОО
B143: 2
B144: 3
B145: 4
B146: 5
B147: 6
B148: 7
B149: 8
A150: 13 | B150: 1 | C150: ПОО.01 | D150: 44 | E150: Экологические основы природопользования
B151: 2
B152: 3
B153: 4
B154: 5
B155: 6
B156: 7
B157: 8
A159: 5 | B159: 1 | C159: СГ | E159: Социально-гуманитарный цикл
B160: 2
B161: 3
B162: 4
B163: 5
B164: 6
B165: 7
B166: 8
A167: 14 | B167: 1 | C167: СГ.01 | D167: 6 | E167: История России
B168: 2
B169: 3
B170: 4
B171: 5
B172: 6
B173: 7
B174: 8
A175: 15 | B175: 1 | C175: СГ.02 | D175: 6 | E175: Иностранный язык в профессиональной деятельности
B176: 2
B177: 3
B178: 4
B179: 5
B180: 6
B181: 7
B182: 8
A183: 16 | B183: 1 | C183: СГ.03 | D183: 6 | E183: Безопасность жизнедеятельности
B184: 2
B185: 3
B186: 4
B187: 5
B188: 6
B189: 7
B190: 8
A191: 17 | B191: 1 | C191: СГ.04 | D191: 6 | E191: Физическая культура / Адаптивная физическая культура
B192: 2
B193: 3
B194: 4
B195: 5
B196: 6
B197: 7
B198: 8
A199: 18 | B199: 1 | C199: СГ.05 | D199: 6 | E199: Основы финансовой грамотности
B200: 2
B201: 3
B202: 4
B203: 5
B204: 6
B205: 7
B206: 8
... 296 more rows

Sheet Кабинеты
B1: № | C1: Наименование
C2: Кабинеты:
B3: 1 | C3: социально-экономических дисциплин
B4: 2 | C4: иностранного языка
B5: 3 | C5: математических дисциплин
B6: 4 | C6: безопасности жизнедеятельности
B7: 5 | C7: метрологии и стандартизации
C8: Лаборатории:
B9: 1 | C9: электротехники и электроники
B10: 2 | C10: сетей и систем передачи информации
B11: 3 | C11: технического контроля и диагностики сетевой инфраструктуры Интернета вещей
B12: 4 | C12: информационных технологий, программирования и баз данных
C13: Мастерские:
B14: 1 | C14: аппаратной инфрастуктуры Интернета вещей
C15: Спортивный комплекс:
C16: Залы:
B17: 1 | C17: библиотека, читальный зал с выходом в сеть Интернет
B18: 2 | C18: актовый зал

Sheet Пояснения
B1: Пояснения
B2: Настоящий рабочий учебный план программы среднего профессионального образования подготовки специалистов среднего звена по специальности 09.02.08 Интеллектуальные интегрированные системы АНО ПОО "МКДК" разработан на основе: Федерального закона от 29 декабря 2012 г. № 273-ФЗ «Об образовании в Российской Федерации» (с изменениями); Устава АНО ПОО "МКДК"; Приказа Министерства просвещения РФ от 12 декабря 2022 г. N 1095 "Об утверждении федерального государственного образовательного стандарта среднего профессионального образования по специальности 09.02.08 Интеллектуальные интегрированные системы"; Положения о практической подготовке обучающихся, утвержденного приказом Министерства науки и высшего образования Российской Федерации от 5 августа 2020 г. N 885/390; Приказа Министерства просвещения Российской Федерации №336 «Об утверждении перечней профессий и специальностей среднего профессионального образования и установлении соответствия отдельных профессий и специальностей среднего профессионального образования, указанных в этих перечнях, профессиям и специальностям среднего профессионального образования, перечни которых утверждены приказом Министерства образования и науки Российской Федерации от 29 октября 2013 г. № 1199 «Об утверждении перечней профессий и специальностей среднего профессионального образования»; Приказа Министерства просвещения Российской Федерации от 24 августа 2022 г. №762 «Об утверждении Порядка организации и осуществления образовательной деятельности по образовательным программам среднего профессионального образования» (далее – Порядок организации образовательной деятельности); Приказа Министерства просвещения Российской Федерации от 8 ноября 2021 г. №800 «Об утверждении Порядка проведения государственной итоговой аттестации по образовательным программам среднего профессионального образования».
B3: Организация учебного процесса проходит в соответствии с Уставом колледжа: начало занятий 1 сентября, окончание занятий 30 июня, шестидневная учебная неделя, начало занятий согласно расписанию. Продолжительность учебного занятия 45 минут. Нагрузка обучающихся составляет 36 часов в неделю, включая все виды аудиторной и внеаудиторной (самостоятельной) работы по освоению ППССЗ. Академические занятия группируются по два академических часа. Ежегодно разрабатывается график учебного процесса, в котором отражается концентрированное или рассредоточенное изучение дисциплин, профессиональных модулей и практик.
B4: Согласно ФГОС нормативный срок обучения по данной специальности на базе среднего общего образования при очной форме обучения 1 год 10 месяцев. Общий объем образовательной программы составляет 2952 часа. Согласно ФГОС нормативный срок обучения по данной специальности на базе основного общего образования при очной форме обучения 2 года 10 месяцев. Общий объем образовательной программы составляет 4428 часов.
B5: Общеобразовательный цикл программы сформирован в соответствии с федеральным государственным образовательным стандартом среднего общего образования (профильное обучение) в пределах освоения образовательной программы среднего профессионального образования, формируемой на основе федерального государственного образовательного стандарта СПО. Профиль обучения по данной специальности – технологический. В рамках общеобразовательного цикла программы предусмотрено выполнение обучающимися индивидуального проекта.
B6: В период обучения с юношами проводятся учебные сборы (согласно пункта 1 статьи 13 ФЗ «О воинской обязанности и военной службе» и Приказа Минобразования и науки РФ № 134 от 24 февраля 2010 г.).
B7: Часы вариативной части ФГОС распределены на углубление изучения общепрофессиональных дисциплин и профессиональных модулей для формирования дополнительных знаний, умений и профессиональных компетенций с учетом потребности работодателей, что позволяет обеспечить повышение конкурентоспособности выпускников на рынке труда и степени их соответствия требованиям работодателей.
B8: Качество освоения программ учебных дисциплин оценивается в процессе текущего контроля и промежуточной аттестации. Текущий контроль проводится в пределах учебного времени, отведенного на освоение соответствующих учебных дисциплин и междисциплинарных курсов в форме устного и письменного опроса, оценки выполнения контрольных, проверочных работ, лабораторных и практических работ, программы внеаудиторной самостоятельной работы студентов, тестирования, в т.ч. с использованием компьютерных технологий. Промежуточная аттестация проводится в форме дифференцированных зачетов и экзаменов. Оценка знаний осуществляется по пятибалльной шкале. Промежуточная аттестация в форме экзамена проводится в день, освобожденный от других форм учебной нагрузки. Дифференцированные зачеты проводятся за счет часов, выделенных на изучение дисциплин и МДК. Количество контрольных процедур в году не превышает установленные Минобрнауки России нормативы (не более 10 зачетов, без учета физической культуры, и не более 8 экзаменов). Конкретные формы и процедуры текущего контроля успеваемости, промежуточной аттестации по каждой дисциплине и профессиональному модулю доводятся до сведения обучающихся в течение первых двух месяцев от начала обучения. По завершению изучения профессиональных модулей и прохождению всех предусмотренных в нем видов практики проводится экзамен (квалификационный), направленный на проверку сформированности компетенций и готовности выпускника к выполнению определенного вида профессиональной деятельности. Для аттестации обучающихся на соответствие их персональных достижений поэтапным требованиям соответствующей ППССЗ (текущий контроль успеваемости и промежуточная аттестация) созданы фонды оценочных средств, позволяющие оценить умения, знания, практический опыт и освоенные компетенции.
B9: Государственная итоговая аттестация в соответствии с ФГОС СПО проводится в форме демонстрационного экзамена и защиты дипломного проекта (работы).

Sheet Start (hidden)
